bitfinex-derivatives/quotes_BNBF0:USTF0_20250413
["timestamp","ask_amount","ask_price","bid_price","bid_amount"]
[1744527128819,0.2931378,594.17,593.67,3.334]
[1744527129021,0.30966708,594.16,593.67,3.334]
[1744527130623,0.30966708,594.18,593.67,3.334]
[1744527130923,0.2931378,594.15,593.67,3.334]
[1744527131126,0.30966708,594.14,593.67,3.334]
[1744527131726,0.2931378,594.15,593.67,3.334]
[1744527131926,0.30964872,594.14,593.67,3.334]
[1744527133327,0.2931378,594.15,593.67,3.334]
[1744527133522,0.30965212,594.13,593.67,3.334]
[1744527133725,0.30965212,594.12,593.67,3.334]
[1744527133926,0.2931378,594.14,593.67,3.334]
[1744527134128,0.30965212,594.13,593.67,3.334]
[1744527136729,0.30965212,594.18,593.67,3.334]
[1744527136927,0.29314397,594.12,593.67,3.334]
[1744527137234,0.30965212,594.11,593.67,3.334]
[1744527139830,0.29314397,594.12,593.67,3.334]
[1744527140033,0.30963999,594.11,593.67,3.334]
[1744527142737,0.30963999,594.18,593.67,3.334]
[1744527142931,0.30963999,594.17,593.67,3.334]
[1744527143131,0.30963999,594.18,593.67,3.334]
[1744527143335,0.30963999,594.17,593.67,3.334]
[1744527143536,0.30963999,594.16,593.67,3.334]
[1744527143836,0.30963999,594.15,593.67,3.334]
[1744527144035,0.30963999,594.16,593.67,3.334]
[1744527146546,0.30959629,594.15,593.67,3.334]
[1744527146746,0.30959629,594.16,593.67,3.334]
[1744527146948,0.30959629,594.15,593.67,3.334]
[1744527147150,0.30959629,594.16,593.67,3.334]
[1744527148849,0.30959629,594.15,593.67,3.334]
[1744527149047,0.30959629,594.14,593.67,3.334]
[1744527149244,0.30959629,594.18,593.67,3.334]
[1744527149447,0.30959629,594.17,593.67,3.334]
[1744527149744,0.30959629,594.16,593.67,3.334]
[1744527149945,0.30959629,594.15,593.67,3.334]
[1744527150157,0.30959629,594.18,593.67,3.334]
[1744527150349,0.30959629,594.17,593.67,3.334]
[1744527150543,0.30959629,594.18,593.67,3.334]
[1744527150748,0.30959629,594.17,593.67,3.334]
[1744527150946,0.30959629,594.16,593.67,3.334]
[1744527151149,0.30959629,594.18,593.67,3.334]
[1744527151452,0.30959629,594.17,593.67,3.334]
[1744527151749,0.30959629,594.16,593.67,3.334]
[1744527151950,0.33659267,594.19,593.67,3.334]
[1744527151951,0.30959629,594.18,593.67,3.334]
[1744527152151,0.30959629,594.17,593.67,3.334]
[1744527152346,0.30959629,594.18,593.67,3.334]
[1744527154254,0.33659267,594.19,593.67,3.334]
[1744527154454,0.30958438,594.18,593.67,3.334]
[1744527155954,0.33659267,594.19,593.67,3.334]
[1744527156250,0.30958311,594.18,593.67,3.334]
[1744527159156,0.33659267,594.19,593.67,3.334]
[1744527159356,0.30957677,594.18,593.67,3.334]
[1744527160756,0.33659267,594.19,593.67,3.334]
[1744527160953,0.30956953,594.18,593.67,3.334]
[1744527164063,0.30957463,594.17,593.67,3.334]
[1744527164262,0.30957463,594.18,593.67,3.334]
[1744527164558,0.30957463,594.17,593.67,3.334]
[1744527164760,0.30957463,594.16,593.67,3.334]
[1744527164965,0.33659267,594.19,593.67,3.334]
[1744527164966,0.30957463,594.18,593.67,3.334]
[1744527165166,0.30957463,594.17,593.67,3.334]
[1744527165362,0.30957463,594.18,593.67,3.334]
[1744527165563,0.30957463,594.17,593.67,3.334]
[1744527165763,0.30957463,594.18,593.67,3.334]
[1744527165960,0.30957463,594.17,593.67,3.334]
[1744527166161,0.30957463,594.18,593.67,3.334]
[1744527167067,0.33659267,594.19,593.67,3.334]
[1744527167267,0.30957386,594.18,593.67,3.334]
[1744527168671,0.33659267,594.19,593.67,3.334]
[1744527168870,0.30957451,594.18,593.67,3.334]
[1744527170273,0.33659267,594.19,593.67,3.334]
[1744527170470,0.30956715,594.18,593.67,3.334]
[1744527171874,0.33659267,594.19,593.67,3.334]
[1744527172074,0.3095646,594.18,593.67,3.334]
[1744527173370,0.33659267,594.19,593.67,3.334]
[1744527173574,0.30956089,594.18,593.67,3.334]
[1744527174976,0.33659267,594.19,593.67,3.334]
[1744527175175,0.30956638,594.18,593.67,3.334]
[1744527178080,0.33659267,594.19,593.67,3.334]
[1744527178280,0.30960975,594.18,593.67,3.334]
[1744527179782,0.29312298,594.17,593.67,3.334]
[1744527179983,0.30960975,594.16,593.67,3.334]
[1744527184688,0.30960975,594.18,593.67,3.334]
[1744527184889,0.2931452,594.15,593.67,3.334]
[1744527185087,0.30960975,594.14,593.67,3.334]
[1744527186990,0.2931452,594.15,593.67,3.334]
[1744527187190,0.30964736,594.14,593.67,3.334]
[1744527187902,0.30964736,594.13,593.67,3.334]
[1744527188092,0.30964736,594.16,593.67,3.334]
[1744527188289,0.30964736,594.15,593.67,3.334]
[1744527188489,0.30964736,594.14,593.67,3.334]
[1744527188791,0.2931452,594.14,593.67,3.334]
[1744527189089,0.30964736,594.13,593.67,3.334]
[1744527190187,0.2931452,594.14,593.67,3.334]
[1744527190386,0.309659,594.13,593.67,3.334]
[1744527190590,0.33663233,594.12,593.67,3.334]
[1744527190791,0.309659,594.11,593.67,3.334]
[1744527190993,0.64629699,594.11,593.67,3.334]
[1744527191191,0.309659,594.1,593.67,3.334]
[1744527191792,0.33663799,594.11,593.67,3.334]
[1744527191993,0.30966976,594.1,593.67,3.334]
[1744527193791,0.29316743,594.09,593.67,3.334]
[1744527193996,0.30966976,594.08,593.67,3.334]
[1744527196694,0.30966976,594.07,593.67,3.334]
[1744527196893,0.30966976,594.1,593.67,3.334]
[1744527197198,0.30966976,594.09,593.67,3.334]
[1744527197395,0.30966976,594.1,593.67,3.334]
[1744527197795,0.29316743,594.09,593.67,3.334]
[1744527198001,0.30966976,594.08,593.67,3.334]
[1744527198200,0.29316743,594.09,593.67,3.334]
[1744527198396,0.30967633,594.08,593.67,3.334]
[1744527199801,0.2931699,594.07,593.67,3.334]
[1744527200302,0.30967633,594.06,593.67,3.334]
[1744527202703,0.30967633,594.1,593.67,3.334]
[1744527202904,0.33663799,594.11,593.67,3.334]
[1744527203104,0.30972348,594.1,593.67,3.334]
[1744527203805,0.29316743,594.09,593.67,3.334]
[1744527204006,0.30972348,594.08,593.67,3.334]
[1744527204805,0.33666066,594.07,593.67,3.334]
[1744527205006,0.30972348,594.06,593.67,3.334]
[1744527206202,0.33666066,594.07,593.67,3.334]
[1744527206407,0.30973304,594.06,593.67,3.334]
[1744527206815,0.60287824,594.06,593.67,3.334]
[1744527207008,0.30973304,594.05,593.67,3.334]
[1744527207308,0.30973304,594.05,592.94,0.29318225]
[1744527208608,0.30973304,594.05,592.32,1.06013757]
[1744527208807,0.30973304,594.06,592.34,0.33764392]
[1744527209002,0.2933503,594.04,592.94,0.2933503]
[1744527209203,0.30973304,594.03,592.34,0.33764392]
[1744527209406,0.30973304,594.03,592.35,0.30264777]
[1744527209608,0.30973304,594.03,592.37,0.33762682]
[1744527209811,0.30973304,594.03,592.38,0.30264777]
[1744527210028,0.30973304,594.03,592.36,0.858]
[1744527210029,0.30973304,594.03,592.41,1.06013757]
[1744527210209,0.30973304,594.03,592.43,0.33759262]
[1744527210410,0.30973304,594.03,592.44,0.30264777]
[1744527210711,0.30973304,594.03,592.46,0.33757553]
[1744527210907,0.30973304,594.03,592.47,0.30264777]
[1744527211108,0.30973304,594.03,592.49,0.33755843]
[1744527211309,0.30973304,594.03,592.5,0.30264777]
[1744527211610,0.30973304,594.03,592.52,0.33754134]
[1744527211910,0.6030648,594.02,592.53,0.30264777]
[1744527212111,0.30973304,594.01,592.55,0.33752425]
[1744527212312,0.30973304,594.01,592.56,0.30264777]
[1744527212611,0.30973304,594.01,592.58,0.33750717]
[1744527212805,0.30973304,594.01,592.59,0.30264777]
[1744527213005,0.30973304,594.01,592.61,0.33749008]
[1744527213310,0.30973304,594.01,592.62,0.30264777]
[1744527213510,0.30973304,594.01,592.64,0.337473]
[1744527213713,0.30973304,594.01,592.65,0.30264777]
[1744527214014,0.30973304,594.01,592.66,0.33746161]
[1744527214210,0.29333176,594.02,592.66,0.33746161]
[1744527214211,0.30972464,594.0,592.67,0.30265017]
[1744527214413,0.30972464,594.01,592.67,0.30265017]
[1744527214610,0.30972464,594.0,592.67,0.30265017]
[1744527214811,0.30972464,594.06,592.67,0.30265017]
[1744527215012,0.29331322,594.0,592.67,0.30265017]
[1744527215208,0.30972464,593.99,592.67,0.30265017]
[1744527215413,0.30972464,593.99,592.68,0.33745022]
[1744527215613,0.30972464,593.99,592.69,0.30265017]
[1744527215913,0.30972464,593.99,592.7,0.33743883]
[1744527216114,0.30972464,593.99,592.71,0.30265017]
[1744527216315,0.30972464,593.99,592.72,0.33742745]
[1744527216515,0.30972464,593.99,592.73,0.30265017]
[1744527216815,0.30972464,593.99,592.74,0.33741606]
[1744527217013,0.30972464,593.99,592.75,0.30265017]
[1744527217215,0.30972464,593.99,592.76,0.33740468]
[1744527217415,0.30972464,593.99,592.77,0.30265017]
[1744527217617,0.30972464,593.99,592.78,0.33739329]
[1744527218017,0.30972464,593.98,592.79,0.30265017]
[1744527218218,0.30972464,593.97,592.8,0.33738191]
[1744527218415,0.30972464,594.06,592.81,0.30265017]
[1744527218719,0.30972464,594.05,592.82,0.33737053]
[1744527218918,0.29328973,594.05,592.82,0.33737053]
[1744527219121,0.30972471,594.04,592.83,0.30265024]
[1744527219315,0.30972471,594.04,592.83,0.64001508]
[1744527219520,0.30972471,594.04,592.84,0.30265024]
[1744527220519,0.29328973,594.05,592.83,0.33736484]
[1744527220722,0.30972819,594.04,592.84,0.30265371]
[1744527222226,0.29328973,594.05,592.83,0.33736484]
[1744527222425,0.30972345,594.04,592.84,0.30264898]
[1744527223822,0.30972345,594.04,592.85,0.559]
[1744527224027,0.30972345,594.04,592.86,0.30264898]
[1744527226923,0.29328603,594.03,592.85,0.559]
[1744527227127,0.29328603,594.03,592.86,0.302645]
[1744527227328,0.30971946,594.02,592.86,0.302645]
[1744527228130,0.30971946,594.02,592.87,0.638]
[1744527228329,0.30971946,594.02,592.88,0.302645]
[1744527228630,0.30971672,594.01,592.89,0.30264227]
[1744527228828,0.30971672,594.02,592.88,0.30264227]
[1744527229028,0.30971672,594.02,592.87,0.638]
[1744527229029,0.29328603,594.03,592.87,0.638]
[1744527229724,0.33666066,594.07,592.87,0.638]
[1744527229950,0.29327367,594.02,592.87,0.638]
[1744527230624,0.29327367,594.02,592.88,0.918]
[1744527232531,0.33666066,594.07,592.88,0.918]
[1744527233835,0.29318472,594.06,592.88,0.918]
[1744527235534,0.33666066,594.07,592.88,0.918]
[1744527236134,0.30970429,594.06,592.88,0.918]
[1744527236830,0.29327243,594.05,592.88,0.918]
[1744527237036,0.30970429,594.04,592.89,0.30262992]
[1744527238130,0.29327243,594.05,592.88,0.918]
[1744527238331,0.30970468,594.04,592.89,0.30263027]
[1744527238535,0.30970468,594.04,592.89,0.87463027]
[1744527238735,0.30970468,594.06,592.9,0.30263027]
[1744527238935,0.2932749,594.03,592.9,0.30263027]
[1744527239131,0.30970468,594.02,592.9,0.30263027]
[1744527244739,0.30970468,594.06,592.9,0.30263027]
[1744527245847,0.2932712,594.05,592.9,0.30263027]
[1744527246044,0.30970468,594.04,592.9,0.30263027]
[1744527246344,0.30970468,594.04,592.9,1.04163027]
[1744527246544,0.30970468,594.04,592.91,0.30263027]
[1744527247246,0.2932712,594.05,592.9,0.739]
[1744527247543,0.30970396,594.04,592.91,0.30262955]
[1744527250862,0.30970396,594.06,592.91,0.30262955]
[1744527251037,0.30970396,594.05,592.91,0.30262955]
[1744527251240,0.30970396,594.04,592.91,0.30262955]
[1744527251439,0.30970396,594.06,592.91,0.30262955]
[1744527251646,0.30970396,594.05,592.91,0.30262955]
[1744527251846,0.30970396,594.04,592.91,0.30262955]
[1744527252046,0.29326996,594.05,592.91,1.07962955]
[1744527252341,0.30970396,594.04,592.92,0.30262955]
[1744527253747,0.30970396,594.06,592.92,0.30262955]
[1744527254056,0.29326872,594.03,592.92,0.30262955]
[1744527254347,0.30970396,594.02,592.92,0.30262955]
[1744527255450,0.30970396,594.02,592.92,1.07962955]
[1744527255747,0.30970396,594.02,592.93,0.30262955]
[1744527256748,0.30970396,594.06,592.93,0.30262955]
[1744527256943,0.60297639,594.01,592.93,0.30262955]
[1744527257142,0.30970396,594.0,592.93,0.30262955]
[1744527257348,0.30970396,594.0,592.93,0.77062955]
[1744527257544,0.30970396,594.0,592.94,0.30262955]
[1744527258148,0.30970396,594.0,592.93,0.468]
[1744527258548,0.30970396,594.0,592.94,0.30263372]
[1744527259148,0.30970396,594.0,592.93,1.011]
[1744527259349,0.30970396,594.0,592.94,0.30263695]
[1744527259749,0.30970396,594.06,592.94,0.30263695]
[1744527259945,0.64637595,594.05,592.94,0.30263695]
[1744527260150,0.30970396,594.04,592.94,0.30263695]
[1744527260345,0.30971383,594.03,592.93,1.011]
[1744527260549,0.30971383,594.04,592.94,0.30263938]
[1744527260850,0.30971383,594.04,592.93,1.011]
[1744527261051,0.29328108,594.03,592.93,1.011]
[1744527261349,0.30971383,594.02,592.94,0.30263692]
[1744527262849,0.30971383,594.04,592.94,0.30263692]
[1744527263053,0.30971383,594.03,592.94,0.30263692]
[1744527263244,0.30971383,594.04,592.94,0.30263692]
[1744527263854,0.29328108,594.03,592.94,0.30263692]
[1744527264050,0.30971383,594.02,592.94,0.30263692]
[1744527265951,0.30971383,594.04,592.94,0.30263692]
[1744527266153,0.30971383,594.03,592.94,0.30263692]
[1744527266353,0.30971383,594.02,592.94,0.30263692]
[1744527266554,0.30971383,594.04,592.94,0.30263692]
[1744527266854,0.29328108,594.01,592.95,0.30263474]
[1744527267054,0.30970918,594.0,592.96,0.30263474]
[1744527267248,0.30970918,594.0,592.97,0.30263474]
[1744527267554,0.30970918,594.0,592.98,0.30263474]
[1744527267855,0.30970918,594.0,592.99,0.30263474]
[1744527268054,0.30970918,594.0,592.93,1.011]
[1744527268055,0.30970918,594.0,592.94,0.30263474]
[1744527268254,0.30970918,594.0,593.0,0.30263474]
[1744527268459,0.30970918,594.0,592.93,1.011]
[1744527268658,0.30970918,594.0,592.94,0.30263329]
[1744527268859,0.30970918,594.04,592.94,0.30263329]
[1744527269158,0.29328603,593.99,592.94,0.30263329]
[1744527269351,0.30970918,593.98,592.94,0.30263329]
[1744527271762,0.30970918,594.04,592.94,0.30263329]
[1744527271962,0.30970918,594.03,592.94,0.30263329]
[1744527272163,0.30970918,594.02,592.94,0.30263329]
[1744527272357,0.30970918,594.01,592.94,0.30263329]
[1744527272560,0.30970918,594.04,592.94,0.30263329]
[1744527272761,0.30970918,594.03,592.94,0.30263329]
[1744527272961,0.29328108,594.0,592.94,0.30263329]
[1744527273158,0.29328108,594.0,592.93,1.011]
[1744527273363,0.30970659,593.99,592.94,0.30263218]
[1744527274762,0.33667199,594.05,592.93,1.011]
[1744527274964,0.29328726,593.98,592.94,0.30263647]
[1744527275161,0.30971088,593.97,592.94,0.30263647]
[1744527275362,0.30971088,594.04,592.94,0.30263647]
[1744527275868,0.29328108,594.03,592.95,0.511]
[1744527276060,0.30971088,594.02,592.96,0.30263647]
[1744527277869,0.29328108,594.01,592.96,0.30263647]
[1744527278166,0.30971088,594.0,592.96,0.30263647]
[1744527278863,0.30971088,594.0,592.97,0.723]
[1744527279064,0.30971088,594.0,592.98,0.30263647]
[1744527279467,0.30971088,594.0,592.99,0.491]
[1744527279667,0.30971338,593.99,592.99,0.491]
[1744527279963,0.30971338,593.98,593.0,0.30263409]
[1744527280166,0.30971338,594.0,593.0,0.30263409]
[1744527280760,1.61691433,594.05,593.0,0.30263409]
[1744527280761,0.30971338,593.99,593.0,0.30263409]
[1744527280962,0.30971338,594.04,593.0,0.30263409]
[1744527281169,0.30971338,594.03,593.0,0.30263409]
[1744527281364,0.30971338,594.04,593.0,0.30263409]
[1744527281564,0.30971338,594.03,593.0,0.30263409]
[1744527281766,0.29327367,594.03,593.0,0.30263409]
[1744527281968,0.30971338,594.02,593.0,0.30263409]
[1744527283766,0.30971338,594.04,593.0,0.30263409]
[1744527283970,0.29327614,594.01,593.0,0.30263409]
[1744527284266,0.30971338,594.0,593.0,0.30263409]
[1744527284782,0.30971338,594.0,592.99,0.491]
[1744527284966,0.30971338,594.0,593.0,0.30263558]
[1744527285971,0.30971338,594.0,593.01,0.48]
[1744527289773,0.29327861,593.99,593.01,0.48]
[1744527289973,0.30971338,593.98,593.01,0.48]
[1744527290781,0.30971338,593.98,593.02,0.743]
[1744527290984,0.30970702,593.97,593.02,0.743]
[1744527291176,0.30970702,593.98,593.02,0.743]
[1744527292484,0.29327861,593.99,593.02,0.743]
[1744527292678,0.30970614,593.98,593.02,0.743]
[1744527292882,0.29326996,593.98,593.02,0.743]
[1744527293082,0.30970614,593.97,593.02,0.743]
[1744527295788,0.30970738,593.96,593.02,0.743]
[1744527295986,0.30970738,594.04,593.02,0.743]
[1744527296180,0.30970738,594.03,593.02,0.743]
[1744527296381,0.30970738,594.04,593.02,0.743]
[1744527296583,0.30970738,594.03,593.02,0.743]
[1744527296787,0.30970738,594.04,593.02,0.743]
[1744527296990,0.29326996,594.02,593.02,0.743]
[1744527297188,0.30970738,594.01,593.02,0.743]
[1744527297383,0.30970916,594.0,593.02,1.401]
[1744527297601,0.30970916,593.99,593.02,1.401]
[1744527297783,0.30970916,593.98,593.02,1.401]
[1744527298088,0.30970916,593.97,593.02,1.401]
[1744527298288,0.30970916,594.01,593.02,1.401]
[1744527298788,0.30970916,594.04,593.02,1.401]
[1744527298989,0.29326996,594.0,593.02,1.401]
[1744527299185,0.30970895,593.99,593.02,1.401]
[1744527300490,0.29326996,594.0,593.02,1.401]
[1744527300686,0.30970725,593.99,593.02,1.401]
[1744527301794,0.30970725,594.04,593.02,1.401]
[1744527301989,0.29326996,593.98,593.02,1.401]
[1744527302194,0.30970725,593.97,593.02,1.401]
[1744527303195,0.29326996,593.98,593.02,1.401]
[1744527303495,0.30970555,593.97,593.02,1.401]
[1744527304895,0.30976063,593.96,593.02,1.401]
[1744527305093,0.30976063,593.95,593.02,1.401]
[1744527305296,0.30976063,593.94,593.02,1.401]
[1744527305595,0.30976063,593.93,593.02,1.401]
[1744527305797,0.30976063,593.92,593.02,2.129]
[1744527306000,0.29328973,593.93,593.02,2.129]
[1744527306293,0.30976063,593.92,593.02,2.129]
[1744527306490,0.29328973,593.93,593.02,2.129]
[1744527306491,0.30977914,593.91,593.02,2.129]
[1744527306698,0.30977914,593.92,593.02,2.129]
[1744527306896,0.30977914,593.91,593.02,2.129]
[1744527307097,0.30977914,593.92,593.02,2.129]
[1744527307599,0.33675135,593.91,593.02,2.129]
[1744527307799,0.30977914,593.9,593.02,2.129]
[1744527308398,0.3367627,593.89,593.02,2.129]
[1744527308594,0.30977914,593.88,593.02,2.129]
[1744527308798,0.60310719,593.88,593.02,2.129]
[1744527309020,0.30977914,593.87,593.02,2.129]
[1744527309602,0.29332805,593.88,593.02,2.129]
[1744527309900,0.30980297,593.87,593.02,2.129]
[1744527310903,0.30980297,593.86,593.02,2.129]
[1744527311100,0.30980297,593.88,593.02,2.129]
[1744527311299,0.3367627,593.89,593.02,2.129]
[1744527311498,0.30980223,593.88,593.02,2.129]
[1744527311905,0.29332929,593.87,593.02,2.129]
[1744527312123,0.30980223,593.86,593.02,2.129]
[1744527313707,0.30980223,593.88,593.02,2.129]
[1744527314007,0.29333176,593.85,593.02,2.129]
[1744527314410,0.3097931,593.84,593.02,2.129]
[1744527314806,0.3097931,593.84,593.02,2.701]
[1744527315409,0.29333176,593.85,593.02,2.701]
[1744527316610,0.3367627,593.89,593.02,2.701]
[1744527317105,0.29330209,593.86,593.02,2.701]
[1744527317911,0.29330209,593.86,593.02,3.5]
[1744527318110,0.30978359,593.85,593.02,3.5]
[1744527321013,0.29330209,593.86,593.02,3.5]
[1744527321215,0.30981568,593.85,593.02,3.5]
[1744527322615,0.3367627,593.89,593.02,3.5]
[1744527322809,0.30982307,593.88,593.02,3.5]
[1744527323810,0.29332929,593.87,593.02,3.5]
[1744527324014,0.30982307,593.86,593.02,3.5]
[1744527324208,0.29332929,593.87,593.02,3.5]
[1744527324412,0.3098277,593.86,593.02,3.5]
[1744527324611,0.64660741,593.86,593.02,3.5]
[1744527324810,0.3098277,593.85,593.02,3.5]
[1744527325914,0.64661308,593.85,593.02,3.5]
[1744527326117,0.3098277,593.84,593.02,3.5]
[1744527326817,0.29334412,593.83,593.02,3.5]
[1744527327018,0.3098277,593.82,593.02,3.5]
[1744527328815,0.6031743,593.81,593.02,3.5]
[1744527329016,0.3098277,593.8,593.02,3.5]
[1744527330018,0.33681941,593.79,593.02,3.5]
[1744527330219,0.3098277,593.78,593.02,3.5]
[1744527330426,0.33683075,593.77,593.02,3.5]
[1744527330821,0.3098806,593.76,593.02,3.5]
[1744527331025,0.64671703,593.76,593.02,3.5]
[1744527331225,0.3098806,593.75,593.02,3.5]
[1744527331628,0.6467227,593.75,593.02,3.5]
[1744527331826,0.3098806,593.74,593.02,3.5]
[1744527332228,0.3368421,593.75,593.02,3.5]
[1744527332426,0.30987885,593.74,593.02,3.5]
[1744527333828,0.3368421,593.75,593.02,3.5]
[1744527334132,0.30987777,593.74,593.02,3.5]
[1744527334932,0.29338122,593.73,593.02,3.5]
[1744527335226,0.30987777,593.72,593.02,3.5]
[1744527337836,0.30987777,593.74,593.02,3.5]
[1744527338035,0.30987777,593.73,593.02,3.5]
[1744527338235,0.30987777,593.74,593.02,3.5]
[1744527338632,0.3368421,593.75,593.02,3.5]
[1744527338836,0.29338122,593.73,593.02,3.5]
[1744527339037,0.30988635,593.72,593.02,3.5]
[1744527340843,0.30988635,593.71,593.02,3.5]
[1744527341040,0.29338369,593.71,593.02,3.5]
[1744527341240,0.30988635,593.7,593.02,3.5]
[1744527343044,0.64675682,593.7,593.02,3.5]
[1744527343243,0.30988635,593.69,593.02,3.5]
[1744527343844,0.29339977,593.68,593.02,3.5]
[1744527344038,0.30988635,593.67,593.02,3.5]
[1744527345443,0.29339977,593.68,593.02,3.5]
[1744527346642,0.33687047,593.7,593.02,3.5]
[1744527346943,0.2933874,593.67,593.02,3.5]
[1744527350043,0.30986902,593.66,593.02,3.5]
[1744527351650,0.3098638,593.65,593.02,3.5]
[1744527351849,0.3098638,593.69,593.02,3.5]
[1744527352049,0.3098638,593.68,593.02,3.5]
[1744527352348,0.3098638,593.67,593.02,3.5]
[1744527352547,0.3098638,593.69,593.02,3.5]
[1744527356855,0.2933874,593.68,593.02,3.5]
[1744527357049,0.3098638,593.67,593.02,3.5]
[1744527358857,0.3098638,593.69,593.02,3.5]
[1744527359056,0.29338988,593.66,593.02,3.5]
[1744527359261,0.3098638,593.65,593.02,3.5]
[1744527359656,0.29338988,593.66,593.02,3.5]
[1744527359857,0.30986744,593.65,593.02,3.5]
[1744527361852,0.30986744,593.69,593.02,3.5]
[1744527362358,0.33687047,593.7,593.02,3.5]
[1744527362552,0.30986763,593.69,593.02,3.5]
[1744527367272,0.33687047,593.7,593.02,3.5]
[1744527367568,0.30987167,593.69,593.02,3.5]
[1744527368869,0.33687047,593.7,593.02,3.5]
[1744527369170,0.30987108,593.69,593.02,3.5]
[1744527374273,0.33687047,593.7,593.02,3.5]
[1744527374572,0.30985463,593.69,593.02,3.5]
[1744527375472,0.30985462,593.68,593.02,3.5]
[1744527375671,0.30985462,593.69,593.02,3.5]
[1744527375868,0.30985462,593.68,593.02,3.5]
[1744527376076,0.30985462,593.69,593.02,3.5]
[1744527376273,0.30985462,593.68,593.02,3.5]
[1744527376469,0.30985462,593.69,593.02,3.5]
[1744527381074,0.29337009,593.68,593.02,3.5]
[1744527381274,0.30985462,593.67,593.02,3.5]
[1744527382872,0.30985462,593.69,593.02,3.5]
[1744527383975,0.29337009,593.68,593.02,3.5]
[1744527384276,0.30985462,593.67,593.02,3.5]
[1744527385978,0.30985462,593.66,593.02,3.5]
[1744527386175,0.30985462,593.67,593.02,3.5]
[1744527386380,0.30985462,593.66,593.02,3.5]
[1744527386576,0.30985462,593.65,593.02,3.5]
[1744527386773,0.29337256,593.68,593.02,3.5]
[1744527386976,0.30985358,593.67,593.02,3.5]
[1744527388878,0.30985358,593.69,593.02,3.5]
[1744527389979,0.33687047,593.7,593.02,3.5]
[1744527390278,0.3098546,593.69,593.02,3.5]
[1744527391682,0.33687047,593.7,593.02,3.5]
[1744527391879,0.30985463,593.69,593.02,3.5]
[1744527406689,0.33687047,593.7,593.02,3.5]
[1744527406893,0.30984293,593.69,593.02,3.5]
[1744527407899,0.33687047,593.7,593.02,3.5]
[1744527408099,0.30983684,593.69,593.02,3.5]
[1744527409300,0.33687047,593.7,593.02,3.5]
[1744527415098,0.30984191,593.69,593.02,3.5]
[1744527415701,0.30986172,593.68,593.02,3.5]
[1744527415898,0.30986172,593.69,593.02,3.5]
[1744527416098,0.30986843,593.68,593.02,3.5]
[1744527416301,0.30986843,593.69,593.02,3.5]
[1744527416500,0.30986843,593.68,593.02,3.5]
[1744527416701,0.30986843,593.69,593.02,3.5]
[1744527417598,0.33687047,593.7,593.02,3.5]
[1744527417803,0.30987767,593.69,593.02,3.5]
[1744527419001,0.29337751,593.68,593.02,3.5]
[1744527419206,0.30987767,593.67,593.02,3.5]
[1744527419401,0.30987672,593.66,593.02,3.5]
[1744527419605,0.30987672,593.65,593.02,3.5]
[1744527419907,0.30987672,593.64,593.02,3.5]
[1744527420107,0.30987672,593.67,593.02,3.5]
[1744527420706,0.29337751,593.68,593.02,3.5]
[1744527420909,0.30986723,593.66,593.02,3.5]
[1744527421211,0.30986723,593.65,593.02,3.5]
[1744527421509,0.30986723,593.64,593.02,3.5]
[1744527421803,0.30986723,593.63,593.02,3.5]
[1744527422009,0.33687047,593.7,593.02,3.5]
[1744527422209,0.30986723,593.62,593.02,3.5]
[1744527422512,0.30986723,593.61,593.02,3.5]
[1744527422807,0.30986723,593.69,593.02,3.5]
[1744527423008,0.29337751,593.65,593.02,3.5]
[1744527423208,0.30986723,593.64,593.02,3.5]
[1744527423609,0.29337751,593.65,593.02,3.5]
[1744527423805,0.30986298,593.64,593.02,3.5]
[1744527424509,0.33687047,593.7,593.02,3.5]
[1744527431029,0.30982426,593.69,593.02,3.5]
[1744527432007,0.30982764,593.68,593.02,3.5]
[1744527432211,0.30982764,593.69,593.02,3.5]
[1744527433614,0.33687047,593.7,593.02,3.5]
[1744527433813,0.30982728,593.69,593.02,3.5]
[1744527434616,0.30982692,593.68,593.02,3.5]